[Event "Late-Titled-Tuesday-Blitz-January-16-2024"]
[Site "Chess.com"]
[Date "2024.01.16"]
[Round "2"]
[White "MightyGMpretender"]
[Black "tactic"]
[Result "1-0"]
[WhiteElo "2822"]
[BlackElo "2542"]
[TimeControl "180+1"]
[EndTime "14:18:12 PST"]
[Termination "MightyGMpretender won by resignation"]

1. e4 {[%clk 0:03:00.9]} 1... c5 {[%clk 0:02:55.4]} 2. Nf3 {[%clk 0:03:01.3]}
2... Nc6 {[%clk 0:02:55.3]} 3. Bb5 {[%clk 0:03:01.2]} 3... e6 {[%clk 0:02:55.8]}
4. Bxc6 {[%clk 0:02:55.8]} 4... bxc6 {[%clk 0:02:53.7]} 5. d3 {[%clk 0:02:56.4]}
5... d6 {[%clk 0:02:33.5]} 6. e5 {[%clk 0:02:48.7]} 6... f6 {[%clk 0:02:01.2]}
7. exd6 {[%clk 0:02:44.7]} 7... e5 {[%clk 0:02:01.1]} 8. Nc3 {[%clk 0:02:44.6]}
8... Be6 {[%clk 0:01:59.4]} 9. Be3 {[%clk 0:02:44.4]} 9... c4 {[%clk 0:01:57.1]}
10. d4 {[%clk 0:02:43.7]} 10... e4 {[%clk 0:01:26.7]} 11. Nxe4 {[%clk
0:02:42.6]} 11... Bd5 {[%clk 0:01:25.9]} 12. Nc3 {[%clk 0:02:39.7]} 12... Bxd6
{[%clk 0:01:25.9]} 13. O-O {[%clk 0:02:39.3]} 13... Ne7 {[%clk 0:01:26]} 14.
Nxd5 {[%clk 0:02:33.1]} 14... cxd5 {[%clk 0:01:26.2]} 15. b3 {[%clk 0:02:32.5]}
15... Rc8 {[%clk 0:01:25.4]} 16. Nd2 {[%clk 0:02:27.3]} 16... O-O {[%clk
0:01:21.2]} 17. bxc4 {[%clk 0:02:21]} 17... dxc4 {[%clk 0:01:21.2]} 18. Ne4
{[%clk 0:02:20.9]} 18... Nf5 {[%clk 0:00:57.3]} 19. Qh5 {[%clk 0:02:13.7]} 19...
g6 {[%clk 0:00:54.3]} 20. Qf3 {[%clk 0:02:08.7]} 20... Re8 {[%clk 0:00:46.6]}
21. Rad1 {[%clk 0:02:01.5]} 21... Nh4 {[%clk 0:00:36.6]} 22. Nxf6+ {[%clk
0:01:39.5]} 22... Kh8 {[%clk 0:00:30.8]} 23. Qg4 {[%clk 0:01:33]} 23... Qxf6
{[%clk 0:00:19.9]} 24. Bg5 {[%clk 0:01:32.7]} 24... Qf5 {[%clk 0:00:18.6]} 25.
Qxh4 {[%clk 0:01:32.2]} 25... Re4 {[%clk 0:00:19]} 26. Qh3 {[%clk 0:01:09.7]}
26... Rg4 {[%clk 0:00:14.4]} 27. Bf6+ {[%clk 0:01:04.6]} 27... Kg8 {[%clk
0:00:14]} 28. Be5 {[%clk 0:01:05.3]} 28... Be7 {[%clk 0:00:12]} 29. f3 {[%clk
0:01:04]} 29... Rg5 {[%clk 0:00:08]} 30. Qxf5 {[%clk 0:01:03.1]} 30... Rxf5
{[%clk 0:00:08.9]} 31. Rb1 {[%clk 0:01:02.1]} 31... Bf6 {[%clk 0:00:08.9]} 32.
Bxf6 {[%clk 0:00:59]} 32... Rxf6 {[%clk 0:00:09.8]} 33. c3 {[%clk 0:00:58.3]}
33... Ra6 {[%clk 0:00:10.4]} 34. Rf2 {[%clk 0:00:58.6]} 34... Re8 {[%clk
0:00:10.5]} 35. Kf1 {[%clk 0:00:57.4]} 35... Re3 {[%clk 0:00:10.9]} 36. Rb8+
{[%clk 0:00:55.8]} 36... Kg7 {[%clk 0:00:10.9]} 37. Rc2 {[%clk 0:00:52.5]} 37...
Kf6 {[%clk 0:00:11.5]} 38. Rb4 {[%clk 0:00:51.1]} 38... Rc6 {[%clk 0:00:11]} 39.
Kf2 {[%clk 0:00:50.4]} 39... Re7 {[%clk 0:00:09.9]} 40. Re2 {[%clk 0:00:48.7]}
40... Rd7 {[%clk 0:00:09.2]} 41. h4 {[%clk 0:00:47.9]} 41... h6 {[%clk
0:00:09.3]} 42. g4 {[%clk 0:00:48.1]} 42... a5 {[%clk 0:00:09.6]} 43. Rb5 {[%clk
0:00:48]} 43... Ra7 {[%clk 0:00:10.1]} 44. a4 {[%clk 0:00:48.3]} 44... Kf7
{[%clk 0:00:09.4]} 45. Kg3 {[%clk 0:00:48.6]} 45... Kg7 {[%clk 0:00:09.7]} 46.
f4 {[%clk 0:00:48.5]} 46... Rf7 {[%clk 0:00:10.3]} 47. Ree5 {[%clk 0:00:46.2]}
47... Rcf6 {[%clk 0:00:10.7]} 48. f5 {[%clk 0:00:46]} 48... gxf5 {[%clk
0:00:11.1]} 49. Rxf5 {[%clk 0:00:46.5]} 49... Re7 {[%clk 0:00:11.7]} 50. Rxf6
{[%clk 0:00:46.7]} 50... Kxf6 {[%clk 0:00:12.5]} 51. Kf4 {[%clk 0:00:46]} 51...
Re1 {[%clk 0:00:12.7]} 52. Rxa5 {[%clk 0:00:45.7]} 52... Rc1 {[%clk 0:00:13.2]}
53. Ra6+ {[%clk 0:00:46.4]} 53... Kf7 {[%clk 0:00:12.9]} 54. Rxh6 {[%clk
0:00:46.1]} 54... Rxc3 {[%clk 0:00:13.2]} 55. Rc6 {[%clk 0:00:46.8]} 55... Rc1
{[%clk 0:00:12.4]} 56. h5 {[%clk 0:00:46.5]} 56... c3 {[%clk 0:00:13]} 57. Kg5
{[%clk 0:00:47.1]} 57... Ra1 {[%clk 0:00:12.2]} 58. Rxc3 {[%clk 0:00:46.9]}
58... Rxa4 {[%clk 0:00:13]} 59. Rc7+ {[%clk 0:00:47.2]} 59... Kg8 {[%clk
0:00:13.1]} 60. d5 {[%clk 0:00:47]} 60... Ra5 {[%clk 0:00:13.3]} 61. Rd7 {[%clk
0:00:47.6]} 61... Kf8 {[%clk 0:00:13.5]} 62. Kg6 {[%clk 0:00:47.8]} 62... Ke8
{[%clk 0:00:14.1]} 63. Rd6 {[%clk 0:00:46.8]} 63... Ke7 {[%clk 0:00:14.6]} 64.
Re6+ {[%clk 0:00:47.2]} 64... Kd7 {[%clk 0:00:15.3]} 65. h6 {[%clk 0:00:46.6]}
65... Rxd5 {[%clk 0:00:15.4]} 66. Rf6 {[%clk 0:00:47.1]} 66... Ke7 {[%clk
0:00:15.7]} 67. h7 {[%clk 0:00:45.8]} 67... Rd4 {[%clk 0:00:16.5]} 68. g5 {[%clk
0:00:45.5]} 68... Rg4 {[%clk 0:00:16.9]} 69. h8=Q {[%clk 0:00:44.7]} 69... Rh4
{[%clk 0:00:16.9]} 70. Qf8+ {[%clk 0:00:44.4]} 1-0

[Event "Late-Titled-Tuesday-Blitz-January-16-2024"]
[Site "Chess.com"]
[Date "2024.01.16"]
[Round "2"]
[White "IngOscarArdila"]
[Black "chessajedrezz2020"]
[Result "0-1"]
[WhiteElo "2370"]
[BlackElo "2649"]
[TimeControl "180+1"]
[EndTime "14:18:13 PST"]
[Termination "chessajedrezz2020 won on time"]

1. d4 {[%clk 0:02:59.6]} 1... Nf6 {[%clk 0:02:59.9]} 2. c4 {[%clk 0:02:58.5]}
2... g6 {[%clk 0:02:57.3]} 3. Nc3 {[%clk 0:02:58]} 3... d5 {[%clk 0:02:57.9]} 4.
e3 {[%clk 0:02:57.6]} 4... Bg7 {[%clk 0:02:57.9]} 5. Nf3 {[%clk 0:02:57.8]} 5...
O-O {[%clk 0:02:58.5]} 6. Be2 {[%clk 0:02:58.4]} 6... c5 {[%clk 0:02:57.2]} 7.
cxd5 {[%clk 0:02:57.5]} 7... cxd4 {[%clk 0:02:57]} 8. Nxd4 {[%clk 0:02:57.3]}
8... Nxd5 {[%clk 0:02:57.2]} 9. Nxd5 {[%clk 0:02:52.5]} 9... Qxd5 {[%clk
0:02:57.8]} 10. Nf3 {[%clk 0:02:49.9]} 10... Qa5+ {[%clk 0:02:48.3]} 11. Bd2
{[%clk 0:02:49]} 11... Qb6 {[%clk 0:02:48.6]} 12. Bc3 {[%clk 0:02:39.4]} 12...
Bxc3+ {[%clk 0:02:47.6]} 13. bxc3 {[%clk 0:02:40.3]} 13... Rd8 {[%clk
0:02:47.5]} 14. Qb3 {[%clk 0:02:38.7]} 14... Qc5 {[%clk 0:02:42.3]} 15. h4
{[%clk 0:02:35.5]} 15... Be6 {[%clk 0:02:39.4]} 16. Qb4 {[%clk 0:02:33.5]} 16...
Nd7 {[%clk 0:02:27.7]} 17. h5 {[%clk 0:02:31.8]} 17... Qxb4 {[%clk 0:02:24.9]}
18. cxb4 {[%clk 0:02:31.7]} 18... a5 {[%clk 0:02:25.6]} 19. hxg6 {[%clk
0:02:29.4]} 19... hxg6 {[%clk 0:02:24.8]} 20. b5 {[%clk 0:02:29.1]} 20... Nc5
{[%clk 0:02:17.9]} 21. Nd4 {[%clk 0:02:27.6]} 21... Bd5 {[%clk 0:02:18.1]} 22.
f3 {[%clk 0:02:26.3]} 22... e5 {[%clk 0:02:18]} 23. Nc2 {[%clk 0:02:15.6]} 23...
Rac8 {[%clk 0:02:02.6]} 24. e4 {[%clk 0:02:11.4]} 24... Be6 {[%clk 0:01:58.9]}
25. Ne3 {[%clk 0:02:10.7]} 25... Rd4 {[%clk 0:01:43.9]} 26. Kf2 {[%clk
0:01:53.7]} 26... Rcd8 {[%clk 0:01:17.5]} 27. Rhc1 {[%clk 0:00:55.4]} 27... b6
{[%clk 0:01:15.2]} 28. Rc2 {[%clk 0:00:50.2]} 28... Rd2 {[%clk 0:01:14.6]} 29.
Rac1 {[%clk 0:00:32.8]} 29... Bxa2 {[%clk 0:01:12.8]} 30. Ng4 {[%clk 0:00:25.3]}
30... Nd3+ {[%clk 0:01:09.6]} 31. Ke3 {[%clk 0:00:18.7]} 31... Nxc1 {[%clk
0:00:44.3]} 32. Rxd2 {[%clk 0:00:13.4]} 32... Rxd2 {[%clk 0:00:44.1]} 33. Kxd2
{[%clk 0:00:13.8]} 33... Nxe2 {[%clk 0:00:43.1]} 34. Kxe2 {[%clk 0:00:13.9]}
34... Be6 {[%clk 0:00:28.8]} 35. Nxe5 {[%clk 0:00:10.7]} 35... f6 {[%clk
0:00:19.6]} 36. Nc6 {[%clk 0:00:06.6]} 36... Bc4+ {[%clk 0:00:19.3]} 37. Kd2
{[%clk 0:00:07.3]} 37... Bxb5 {[%clk 0:00:19.6]} 38. Nd4 {[%clk 0:00:07.2]}
38... Bd7 {[%clk 0:00:18.6]} 39. Kc3 {[%clk 0:00:06.1]} 39... b5 {[%clk
0:00:17.9]} 40. g4 {[%clk 0:00:05.7]} 40... g5 {[%clk 0:00:17.6]} 41. Ne2 {[%clk
0:00:04.5]} 41... Kf7 {[%clk 0:00:16.6]} 42. Kd4 {[%clk 0:00:04.4]} 42... b4
{[%clk 0:00:14.8]} 43. Nc1 {[%clk 0:00:01.6]} 43... Ke7 {[%clk 0:00:12.6]} 0-1

[Event "Late-Titled-Tuesday-Blitz-January-16-2024"]
[Site "Chess.com"]
[Date "2024.01.16"]
[Round "2"]
[White "KNVB"]
[Black "glebus008"]
[Result "1-0"]
[WhiteElo "2688"]
[BlackElo "2290"]
[TimeControl "180+1"]
[EndTime "14:18:15 PST"]
[Termination "KNVB won on time"]

1. d4 {[%clk 0:03:00.9]} 1... d5 {[%clk 0:02:59.5]} 2. Bf4 {[%clk 0:03:00.1]}
2... c5 {[%clk 0:02:57.2]} 3. e3 {[%clk 0:03:00]} 3... Nc6 {[%clk 0:02:56.9]} 4.
c3 {[%clk 0:02:59.9]} 4... Nf6 {[%clk 0:02:54.3]} 5. Nd2 {[%clk 0:03:00]} 5...
cxd4 {[%clk 0:02:53.9]} 6. exd4 {[%clk 0:03:00.9]} 6... Bf5 {[%clk 0:02:49.4]}
7. Qb3 {[%clk 0:02:59]} 7... Qc8 {[%clk 0:02:46.6]} 8. Ngf3 {[%clk 0:02:59]}
8... e6 {[%clk 0:02:46]} 9. Nh4 {[%clk 0:02:56.5]} 9... Bg4 {[%clk 0:02:40]} 10.
Bd3 {[%clk 0:02:48.3]} 10... Be7 {[%clk 0:02:35.4]} 11. Nhf3 {[%clk 0:02:48.7]}
11... Bh5 {[%clk 0:02:33.8]} 12. O-O {[%clk 0:02:48.4]} 12... Bg6 {[%clk
0:02:33.2]} 13. Bxg6 {[%clk 0:02:47.8]} 13... hxg6 {[%clk 0:02:33]} 14. Rfe1
{[%clk 0:02:48.4]} 14... O-O {[%clk 0:02:32.1]} 15. a4 {[%clk 0:02:46.6]} 15...
Nh5 {[%clk 0:02:22.4]} 16. Be5 {[%clk 0:02:39.3]} 16... Rd8 {[%clk 0:02:04.7]}
17. Qd1 {[%clk 0:02:02.4]} 17... Bd6 {[%clk 0:01:52.1]} 18. Bxd6 {[%clk
0:01:51.3]} 18... Rxd6 {[%clk 0:01:53]} 19. g3 {[%clk 0:01:52.1]} 19... Nf6
{[%clk 0:01:51.5]} 20. Ne5 {[%clk 0:01:43.7]} 20... Rd8 {[%clk 0:01:49.3]} 21.
Nd3 {[%clk 0:01:40.3]} 21... Na5 {[%clk 0:01:43]} 22. h4 {[%clk 0:01:37.6]}
22... Nc4 {[%clk 0:01:41.6]} 23. Nf3 {[%clk 0:01:27.9]} 23... Ne4 {[%clk
0:01:37.5]} 24. Kg2 {[%clk 0:01:24.1]} 24... Qc7 {[%clk 0:01:32.6]} 25. Qe2
{[%clk 0:01:13.9]} 25... Qe7 {[%clk 0:01:21.3]} 26. Rh1 {[%clk 0:01:13.7]} 26...
Rac8 {[%clk 0:01:13.3]} 27. Rae1 {[%clk 0:00:48.7]} 27... a5 {[%clk 0:01:11.2]}
28. h5 {[%clk 0:00:40.5]} 28... g5 {[%clk 0:01:10.3]} 29. Nfe5 {[%clk
0:00:40.9]} 29... Nxe5 {[%clk 0:01:03.7]} 30. Nxe5 {[%clk 0:00:41.1]} 30... Nd6
{[%clk 0:00:43]} 31. Qd3 {[%clk 0:00:15.6]} 31... Nc4 {[%clk 0:00:39.1]} 32. h6
{[%clk 0:00:14.4]} 32... Nxe5 {[%clk 0:00:32.3]} 33. Rxe5 {[%clk 0:00:14.1]}
33... g6 {[%clk 0:00:26.3]} 34. Qe3 {[%clk 0:00:14.3]} 34... Kh7 {[%clk
0:00:17.5]} 35. Rxg5 {[%clk 0:00:10.9]} 35... Rc4 {[%clk 0:00:16.9]} 36. Re5
{[%clk 0:00:04.2]} 36... Rxa4 {[%clk 0:00:14.3]} 37. Re1 {[%clk 0:00:04.1]}
37... Qf6 {[%clk 0:00:10.9]} 38. Qd3 {[%clk 0:00:01.9]} 38... Rc4 {[%clk
0:00:08.5]} 39. R5e3 {[%clk 0:00:02.2]} 39... Rdc8 {[%clk 0:00:06.5]} 40. Rf3
{[%clk 0:00:02.6]} 40... Qe7 {[%clk 0:00:05]} 41. Qe3 {[%clk 0:00:02.8]} 41...
R8c7 {[%clk 0:00:02.6]} 42. Qe5 {[%clk 0:00:03.3]} 1-0

[Event "Late-Titled-Tuesday-Blitz-January-16-2024"]
[Site "Chess.com"]
[Date "2024.01.16"]
[Round "2"]
[White "VladimirKramnik"]
[Black "HaryKane"]
[Result "1-0"]
[WhiteElo "2920"]
[BlackElo "2570"]
[TimeControl "180+1"]
[EndTime "14:18:17 PST"]
[Termination "VladimirKramnik won by checkmate"]

1. e4 {[%clk 0:03:00.9]} 1... e6 {[%clk 0:02:59.2]} 2. d4 {[%clk 0:03:00.2]}
2... d5 {[%clk 0:02:59.5]} 3. exd5 {[%clk 0:03:00]} 3... exd5 {[%clk 0:03:00.4]}
4. Nf3 {[%clk 0:02:59.9]} 4... Bd6 {[%clk 0:02:57.7]} 5. c4 {[%clk 0:02:58.7]}
5... dxc4 {[%clk 0:02:57.8]} 6. Bxc4 {[%clk 0:02:57.9]} 6... Ne7 {[%clk
0:02:56.6]} 7. O-O {[%clk 0:02:56.5]} 7... O-O {[%clk 0:02:55.6]} 8. Nc3 {[%clk
0:02:56]} 8... Bg4 {[%clk 0:02:50.3]} 9. h3 {[%clk 0:02:55.8]} 9... Bh5 {[%clk
0:02:50.2]} 10. g4 {[%clk 0:02:51.8]} 10... Bg6 {[%clk 0:02:50.5]} 11. Ne5
{[%clk 0:02:51.2]} 11... Nbc6 {[%clk 0:02:45.1]} 12. f4 {[%clk 0:02:43.7]} 12...
h6 {[%clk 0:02:26.6]} 13. Be3 {[%clk 0:02:32.2]} 13... a6 {[%clk 0:02:10.6]} 14.
a3 {[%clk 0:02:26]} 14... b5 {[%clk 0:02:03.5]} 15. Ba2 {[%clk 0:01:54.6]} 15...
b4 {[%clk 0:02:03]} 16. axb4 {[%clk 0:01:40.2]} 16... Nxb4 {[%clk 0:02:02.3]}
17. Bb3 {[%clk 0:01:39.2]} 17... c6 {[%clk 0:01:56]} 18. f5 {[%clk 0:01:38]}
18... Bh7 {[%clk 0:01:56.2]} 19. Qf3 {[%clk 0:01:34.7]} 19... Ned5 {[%clk
0:01:52.9]} 20. Nxc6 {[%clk 0:01:28.6]} 20... Nxc6 {[%clk 0:01:31.9]} 21. Bxd5
{[%clk 0:01:28.3]} 21... Nb4 {[%clk 0:01:19.2]} 22. Bxa8 {[%clk 0:01:28]} 22...
Qxa8 {[%clk 0:01:20.1]} 23. Qxa8 {[%clk 0:01:27.3]} 23... Rxa8 {[%clk 0:01:21]}
24. Bf4 {[%clk 0:01:12.7]} 24... Be7 {[%clk 0:01:11.6]} 25. Rad1 {[%clk
0:01:10.7]} 25... Rd8 {[%clk 0:01:04]} 26. d5 {[%clk 0:01:08.2]} 26... Bc5+
{[%clk 0:01:03.1]} 27. Kh2 {[%clk 0:01:05.9]} 27... Kf8 {[%clk 0:01:03.3]} 28.
Ne4 {[%clk 0:00:59.9]} 28... Ba7 {[%clk 0:00:56.5]} 29. d6 {[%clk 0:00:57.4]}
29... f6 {[%clk 0:00:50.3]} 30. d7 {[%clk 0:00:51]} 30... Nc6 {[%clk 0:00:50.6]}
31. Bd6+ {[%clk 0:00:47]} 31... Kf7 {[%clk 0:00:46.8]} 32. Bc7 {[%clk
0:00:47.5]} 32... Bb8 {[%clk 0:00:47]} 33. Nd6+ {[%clk 0:00:46.2]} 33... Ke7
{[%clk 0:00:44.1]} 34. Nc8+ {[%clk 0:00:40.4]} 34... Kf8 {[%clk 0:00:41.5]} 35.
Bxb8 {[%clk 0:00:38.8]} 35... Nxb8 {[%clk 0:00:42.4]} 36. Nb6 {[%clk 0:00:38.4]}
36... Bg8 {[%clk 0:00:38.1]} 37. Rfe1 {[%clk 0:00:38.3]} 37... Nc6 {[%clk
0:00:35.2]} 38. Re8+ {[%clk 0:00:23.7]} 38... Rxe8 {[%clk 0:00:35.2]} 39.
dxe8=Q+ {[%clk 0:00:23.4]} 39... Kxe8 {[%clk 0:00:36.1]} 40. Rd6 {[%clk
0:00:22.7]} 40... Ne5 {[%clk 0:00:34.5]} 41. Nd5 {[%clk 0:00:19.3]} 41... a5
{[%clk 0:00:28.6]} 42. Nc7+ {[%clk 0:00:17.1]} 42... Ke7 {[%clk 0:00:28.8]} 43.
Ra6 {[%clk 0:00:16.6]} 43... Nc4 {[%clk 0:00:22]} 44. Ra7 {[%clk 0:00:16.6]}
44... Nxb2 {[%clk 0:00:13.9]} 45. Ne6+ {[%clk 0:00:13.6]} 45... Kd6 {[%clk
0:00:13]} 46. Nxg7 {[%clk 0:00:12.7]} 46... Bb3 {[%clk 0:00:11.6]} 47. Ne8+
{[%clk 0:00:11.5]} 47... Ke5 {[%clk 0:00:11.5]} 48. Rxa5+ {[%clk 0:00:11.5]}
48... Kf4 {[%clk 0:00:11.3]} 49. Nxf6 {[%clk 0:00:11.8]} 49... Nd1 {[%clk
0:00:10.6]} 50. Nh5+ {[%clk 0:00:11.2]} 50... Kg5 {[%clk 0:00:09.1]} 51. Kg3
{[%clk 0:00:10.3]} 51... Ne3 {[%clk 0:00:06.9]} 52. h4# {[%clk 0:00:10.3]} 1-0

[Event "Late-Titled-Tuesday-Blitz-January-16-2024"]
[Site "Chess.com"]
[Date "2024.01.16"]
[Round "2"]
[White "infinitypoint"]
[Black "C_K_G"]
[Result "0-1"]
[WhiteElo "2586"]
[BlackElo "2082"]
[TimeControl "180+1"]
[EndTime "14:18:20 PST"]
[Termination "C_K_G won by checkmate"]

1. d4 {[%clk 0:03:00.9]} 1... d5 {[%clk 0:02:58.8]} 2. c4 {[%clk 0:03:01.1]}
2... e6 {[%clk 0:02:58.8]} 3. Nc3 {[%clk 0:03:01.2]} 3... Nf6 {[%clk 0:02:59.1]}
4. cxd5 {[%clk 0:03:01.8]} 4... exd5 {[%clk 0:02:58.4]} 5. Bf4 {[%clk
0:03:02.3]} 5... a6 {[%clk 0:02:57.1]} 6. e3 {[%clk 0:03:02.3]} 6... Bd6 {[%clk
0:02:57]} 7. Nge2 {[%clk 0:03:01.8]} 7... O-O {[%clk 0:02:56.9]} 8. h3 {[%clk
0:02:58.8]} 8... Re8 {[%clk 0:02:56.8]} 9. Qc2 {[%clk 0:02:57.6]} 9... b5 {[%clk
0:02:54.3]} 10. Bxd6 {[%clk 0:02:54.3]} 10... Qxd6 {[%clk 0:02:53.5]} 11. Ng3
{[%clk 0:02:54]} 11... c5 {[%clk 0:02:48]} 12. dxc5 {[%clk 0:02:53.5]} 12...
Qxc5 {[%clk 0:02:47.9]} 13. Nge2 {[%clk 0:02:49.9]} 13... Nc6 {[%clk 0:02:46.6]}
14. Rd1 {[%clk 0:02:49.2]} 14... b4 {[%clk 0:02:38.1]} 15. Qd3 {[%clk
0:02:31.7]} 15... bxc3 {[%clk 0:02:36.7]} 16. bxc3 {[%clk 0:02:32.6]} 16... Ne5
{[%clk 0:02:32.4]} 17. Qc2 {[%clk 0:02:31.4]} 17... Ne4 {[%clk 0:02:23.8]} 18.
Rd4 {[%clk 0:02:22.6]} 18... a5 {[%clk 0:02:22.3]} 19. Nf4 {[%clk 0:02:20.9]}
19... Qxc3+ {[%clk 0:02:04.6]} 20. Qxc3 {[%clk 0:02:20.9]} 20... Nxc3 {[%clk
0:02:04.7]} 21. Nxd5 {[%clk 0:02:07.5]} 21... Nxd5 {[%clk 0:02:00.9]} 22. Rxd5
{[%clk 0:02:08.4]} 22... Bb7 {[%clk 0:01:59.3]} 23. Rd1 {[%clk 0:02:07.2]} 23...
Rad8 {[%clk 0:01:56.3]} 24. Rxd8 {[%clk 0:02:07.3]} 24... Rxd8 {[%clk
0:01:56.8]} 25. f4 {[%clk 0:02:07.3]} 25... Nd3+ {[%clk 0:01:39.7]} 26. Ke2
{[%clk 0:02:06.9]} 26... Nc1+ {[%clk 0:01:36.7]} 27. Kf2 {[%clk 0:02:06.2]}
27... Rd2+ {[%clk 0:01:31.5]} 28. Kg3 {[%clk 0:02:06.4]} 28... Nxa2 {[%clk
0:01:30.3]} 29. Bc4 {[%clk 0:01:55.5]} 29... Rxg2+ {[%clk 0:01:28.1]} 30. Kh4
{[%clk 0:01:56]} 30... h6 {[%clk 0:01:26.2]} 31. Ra1 {[%clk 0:01:53.2]} 31...
g5+ {[%clk 0:01:16.6]} 32. Kh5 {[%clk 0:01:52.8]} 32... Kg7 {[%clk 0:01:16]} 33.
Be2 {[%clk 0:01:32.6]} 33... Rxe2 {[%clk 0:01:11.9]} 34. fxg5 {[%clk 0:01:32.7]}
34... hxg5 {[%clk 0:01:11]} 35. Kxg5 {[%clk 0:01:33.1]} 35... Bd5 {[%clk
0:01:10.7]} 36. Kf4 {[%clk 0:01:31.3]} 36... Be6 {[%clk 0:01:10]} 37. h4 {[%clk
0:01:31.2]} 37... Rh2 {[%clk 0:01:10.1]} 38. Kg5 {[%clk 0:01:27.5]} 38... f6+
{[%clk 0:01:10.1]} 39. Kf4 {[%clk 0:01:28]} 39... Rxh4+ {[%clk 0:01:09.8]} 40.
Kf3 {[%clk 0:01:28.7]} 40... Rh2 {[%clk 0:01:09.5]} 41. e4 {[%clk 0:01:27.8]}
41... Kg6 {[%clk 0:01:09.7]} 42. Rg1+ {[%clk 0:01:27.1]} 42... Kf7 {[%clk
0:01:09.7]} 43. Rb1 {[%clk 0:01:27.6]} 43... a4 {[%clk 0:00:56.2]} 44. Rb7+
{[%clk 0:01:26.7]} 44... Kg6 {[%clk 0:00:56.3]} 45. Ra7 {[%clk 0:01:26.8]} 45...
Bb3 {[%clk 0:00:53.4]} 46. Ra6 {[%clk 0:01:26.9]} 46... Nb4 {[%clk 0:00:51.6]}
47. Rd6 {[%clk 0:01:23.2]} 47... Rh3+ {[%clk 0:00:47.4]} 48. Kg4 {[%clk
0:01:22.8]} 48... Rh5 {[%clk 0:00:42.7]} 49. Rb6 {[%clk 0:01:15.7]} 49... Nd3
{[%clk 0:00:41.1]} 50. Ra6 {[%clk 0:01:14.1]} 50... Ne5+ {[%clk 0:00:39.3]} 51.
Kf4 {[%clk 0:01:14.2]} 51... Rh4+ {[%clk 0:00:39.4]} 52. Ke3 {[%clk 0:01:13.5]}
52... Rh3+ {[%clk 0:00:39.8]} 53. Kd4 {[%clk 0:01:13.5]} 53... Rd3+ {[%clk
0:00:39.7]} 54. Kc5 {[%clk 0:01:13.6]} 54... Kg5 {[%clk 0:00:39.4]} 55. Ra8
{[%clk 0:01:12.7]} 55... Kf4 {[%clk 0:00:38.6]} 56. Ra6 {[%clk 0:01:12.2]} 56...
Ng4 {[%clk 0:00:38.4]} 57. e5 {[%clk 0:01:07.5]} 57... fxe5 {[%clk 0:00:35.6]}
58. Kb4 {[%clk 0:01:08.1]} 58... e4 {[%clk 0:00:35.1]} 59. Ra8 {[%clk
0:01:07.6]} 59... e3 {[%clk 0:00:34.4]} 60. Rf8+ {[%clk 0:01:08]} 60... Kg3
{[%clk 0:00:33.8]} 61. Re8 {[%clk 0:01:06.3]} 61... Kf3 {[%clk 0:00:24.7]} 62.
Rf8+ {[%clk 0:01:05.9]} 62... Kg2 {[%clk 0:00:24.7]} 63. Re8 {[%clk 0:01:05.9]}
63... Kf1 {[%clk 0:00:22.2]} 64. Rf8+ {[%clk 0:01:04.8]} 64... Nf2 {[%clk
0:00:22.3]} 65. Ka3 {[%clk 0:01:05.1]} 65... e2 {[%clk 0:00:22]} 66. Kb2 {[%clk
0:00:53.6]} 66... e1=Q {[%clk 0:00:20]} 67. Rc8 {[%clk 0:00:53.7]} 67... Rd2+
{[%clk 0:00:17.8]} 68. Ka3 {[%clk 0:00:54.1]} 68... Qe7+ {[%clk 0:00:17.2]} 69.
Rc5 {[%clk 0:00:52.8]} 69... Qxc5# {[%clk 0:00:17.7]} 0-1

[Event "Late-Titled-Tuesday-Blitz-January-16-2024"]
[Site "Chess.com"]
[Date "2024.01.16"]
[Round "2"]
[White "albi1999"]
[Black "Rud_Makarian"]
[Result "0-1"]
[WhiteElo "2619"]
[BlackElo "3047"]
[TimeControl "180+1"]
[EndTime "14:18:21 PST"]
[Termination "Rud_Makarian won on time"]

1. d4 {[%clk 0:02:54.4]} 1... Nf6 {[%clk 0:02:59.5]} 2. Nf3 {[%clk 0:02:52.8]}
2... c5 {[%clk 0:03:00]} 3. e3 {[%clk 0:02:45.7]} 3... d5 {[%clk 0:03:00]} 4.
Be2 {[%clk 0:02:45]} 4... Nc6 {[%clk 0:03:00.3]} 5. O-O {[%clk 0:02:44]} 5...
cxd4 {[%clk 0:03:00.6]} 6. exd4 {[%clk 0:02:43.4]} 6... Qc7 {[%clk 0:03:01.4]}
7. h3 {[%clk 0:02:36.7]} 7... Bf5 {[%clk 0:03:01.9]} 8. c3 {[%clk 0:02:24.3]}
8... e6 {[%clk 0:03:02.3]} 9. a4 {[%clk 0:02:21.3]} 9... Bd6 {[%clk 0:02:57.5]}
10. Na3 {[%clk 0:02:21.1]} 10... a6 {[%clk 0:02:58.1]} 11. Nc2 {[%clk
0:02:20.5]} 11... h6 {[%clk 0:02:57.5]} 12. Ne3 {[%clk 0:02:19.8]} 12... Bh7
{[%clk 0:02:58.2]} 13. Bd3 {[%clk 0:02:08.1]} 13... Bxd3 {[%clk 0:02:48.9]} 14.
Qxd3 {[%clk 0:02:07.7]} 14... O-O {[%clk 0:02:49.6]} 15. b4 {[%clk 0:01:53.8]}
15... Rac8 {[%clk 0:02:46.9]} 16. Bb2 {[%clk 0:01:50.6]} 16... Ne7 {[%clk
0:02:38.6]} 17. Nd2 {[%clk 0:01:45.2]} 17... Bf4 {[%clk 0:02:25.8]} 18. a5
{[%clk 0:01:41.8]} 18... Nf5 {[%clk 0:02:21.4]} 19. Nb3 {[%clk 0:01:28.4]} 19...
Nxe3 {[%clk 0:02:05.1]} 20. fxe3 {[%clk 0:01:29.3]} 20... Bh2+ {[%clk
0:02:05.5]} 21. Kh1 {[%clk 0:01:29.1]} 21... Ne4 {[%clk 0:02:06.2]} 22. Rf3
{[%clk 0:01:22.6]} 22... f5 {[%clk 0:02:02.2]} 23. Nc5 {[%clk 0:01:20.5]} 23...
Rf6 {[%clk 0:02:02.7]} 24. c4 {[%clk 0:00:53.8]} 24... dxc4 {[%clk 0:01:58.1]}
25. Qc2 {[%clk 0:00:46.1]} 25... Rcf8 {[%clk 0:01:24.6]} 26. Rd1 {[%clk
0:00:13.8]} 26... Bd6 {[%clk 0:00:52.1]} 27. Qxc4 {[%clk 0:00:12.6]} 27... Kh7
{[%clk 0:00:41.9]} 28. Qb3 {[%clk 0:00:12.4]} 28... Rg6 {[%clk 0:00:36.5]} 29.
Nxe6 {[%clk 0:00:08.1]} 29... Rxe6 {[%clk 0:00:29.8]} 30. Qxe6 {[%clk
0:00:07.7]} 30... Qc2 {[%clk 0:00:30.7]} 31. Rdf1 {[%clk 0:00:06.4]} 31... Qxb2
{[%clk 0:00:31.2]} 32. Qd7 {[%clk 0:00:02.2]} 32... Ng3+ {[%clk 0:00:25.6]} 33.
Rxg3 {[%clk 0:00:02.2]} 33... Bxg3 {[%clk 0:00:25.2]} 34. Qxb7 {[%clk
0:00:03.1]} 34... Qe2 {[%clk 0:00:24.1]} 35. Qf3 {[%clk 0:00:02.7]} 35... Qxf3
{[%clk 0:00:20.3]} 36. Rxf3 {[%clk 0:00:03.6]} 36... Bd6 {[%clk 0:00:20.3]} 37.
g4 {[%clk 0:00:04.5]} 37... fxg4 {[%clk 0:00:18]} 38. Rxf8 {[%clk 0:00:04.1]}
38... Bxf8 {[%clk 0:00:18.5]} 39. b5 {[%clk 0:00:04.7]} 39... Bd6 {[%clk
0:00:14.6]} 40. bxa6 {[%clk 0:00:04.7]} 40... Bb8 {[%clk 0:00:14.6]} 41. hxg4
{[%clk 0:00:05.4]} 41... Kg6 {[%clk 0:00:14.5]} 42. Kg2 {[%clk 0:00:06]} 42...
Kg5 {[%clk 0:00:15.1]} 43. Kf3 {[%clk 0:00:06.2]} 43... Ba7 {[%clk 0:00:14.4]}
44. Kg3 {[%clk 0:00:03.8]} 44... g6 {[%clk 0:00:14.1]} 45. Kf3 {[%clk
0:00:02.8]} 45... Bb8 {[%clk 0:00:09.6]} 46. e4 {[%clk 0:00:02.9]} 46... Ba7
{[%clk 0:00:10.1]} 47. d5 {[%clk 0:00:02.2]} 47... Kf6 {[%clk 0:00:09.5]} 0-1